{"text_format":"1","workbook":"xlsx","n_sheets":2,"sheets":["Foster","Manual"],"not_rendered":{"charts":0,"images":1,"macros":1,"external_links":0,"defined_names":0,"comments":0,"pivot_tables":0},"unopened":[],"bounds":{"document_bytes":16777216,"sheet_cells":100000,"rows_first":2000,"rows_last":500,"rows_between":2000,"halvings":0,"cell_chars":16384,"cell_head_chars":4096},"cells_cut":0,"cells_raw":0,"read":"whole","date_system":"1900"}

{"sheet":"Foster","index":0,"n_rows":39,"n_cols":19,"rows_kept":39,"cut":false,"hidden":false,"merged":[[5,7,5,9],[26,6,27,6],[26,8,27,8],[28,1,31,2],[26,4,27,4],[14,9,14,10],[8,6,9,7],[12,2,13,2],[0,3,0,10],[6,6,6,7],[7,6,7,7],[38,18,38,19],[15,5,15,6],[12,5,13,5],[12,8,13,8],[12,11,13,11],[18,5,19,5],[18,8,19,8],[10,1,10,3],[4,5,4,6],[4,3,4,4],[5,3,5,4],[28,10,31,11],[1,3,1,9]]}
[null,null,null,"Carey Foster Bridge"]
[null,null,null,"Modstande i Ω",null,null,null,null,null,null," Volt"]
[null,null,null,"Rx","R2","R4","R5","R3A+R3B","R3A","R3B","Vcc "]
[null,120,null,100,100,100,100,100,50.000000000000036,{"$f":"H4-I4","v":49.999999999999964},10]
[null,null,null,"(Rx-R2)=Δ*(R3B-R3A)",null,"Aflæs ubekendt modstand",null,1,{"$f":"I4/H4","v":0.50000000000000033},{"$f":"H5-I5","v":0.49999999999999967}]
[null,null,null,"Rx=Δ*(R3B-R3A)+R2",null,{"$f":"H4*(J5-I5)+E4","v":99.999999999999929}," Ω","Hvad hvis-analyse"]
[null,null,null,null,null,{"$f":"ROUND(F6,2)","v":100}]
[null,null,null,null,null,null,{"$f":"CONCATENATE(K3,K4,K2)","v":"Vcc 10 Volt"}]
[null,null,null,null,null,null,"+     Volt"]
[]
[null,"Rx den ubekendte modstand"]
[null,null,{"$f":"CONCATENATE(F7,G6)","v":"100 Ω"},null,null,{"$f":"+CONCATENATE(F4,G6)","v":"100 Ω"},null,null,{"$f":"CONCATENATE(G4,G6)","v":"100 Ω"},null,null,{"$f":"+CONCATENATE(E4,G6)","v":"100 Ω"}]
[null,null,{"$f":"+D3","v":"Rx"},null,null,{"$f":"+F3","v":"R4"},null,null,{"$f":"+G3","v":"R5"},null,null,{"$f":"+E3","v":"R2"}]
[]
["Vt1",null,null,null,null,null,null,null,null,"GND",null,null,null,"Vt2",null,"Udarbejdet af Jørgen Walter ©"]
["Volt","Rz=Rx+R3A",{"$f":"D4+I4","v":150.00000000000003},null,null,"Voltmeter",null,{"$f":"+(H24-H22)*1000","v":8.8817841970012523E-13}," mV",null,null,"Ry=R2+R3B",{"$f":"E4+J4","v":149.99999999999997},"Volt"]
[{"$f":"+H22","v":4.9999999999999991},null,null,null,null,null,null,{"$f":"ROUND(H16,2)","v":0},null,null,null,null,null,{"$f":"+H24","v":5},null,"www.walter-lystfisker.dk "]
[null,null,null,null,null,{"$f":"CONCATENATE(I4,G6)","v":"50 Ω"},null,null,{"$f":"CONCATENATE(J4,G6)","v":"50 Ω"},null,null,null,null,null,null,"COPYRIGHT © 2014"]
[null,null,null,null,null,{"$f":"+I3","v":"R3A"},null,null,{"$f":"+J3","v":"R3B"}]
[]
[null,null,null,null,null,{"$f":"+I5","v":0.50000000000000033},null,null,{"$f":"+J5","v":0.49999999999999967}]
[null,"Vt1=Vcc*(Ry/(Rz+Ry))=Volt",null,null,null,null,null,{"$f":"K4*(M16/(C16+M16))","v":4.9999999999999991},"Volt",{"$f":"ROUND(H22,2)","v":5}]
[null,"Ri1 = Rz og Ry sidder parallel=",null,null,null,"Rz//Ry=",null,{"$f":"C16*M16/(C16+M16)","v":75},"Ohm",{"$f":"ROUND(H23,2)","v":75}]
[null,"Vt2=Vcc*(R5/(R4+R5))=Volt",null,null,null,null,null,{"$f":"K4*(G4/(F4+G4))","v":5},"Volt",{"$f":"ROUND(H24,2)","v":5}]
[null,"Ri2 = R4 og R5 sidder parallel=",null,null,null,"R4//R5=",null,{"$f":"F4*G4/(F4+G4)","v":50},"Ohm",{"$f":"ROUND(H25,2)","v":50}]
[]
[null,null,null,null,"Ri1",null,"Volt\nmeter",null,"Ri2"]
[]
["Vt1","+\nVolt",null,null,{"$f":"CONCATENATE(J23,G6)","v":"75 Ω"},{"$f":"CONCATENATE(J22,K2)","v":"5 Volt"},{"$f":"CONCATENATE(H17,I16)","v":"0 mV"},{"$f":"CONCATENATE(J24,K2)","v":"5 Volt"},{"$f":"CONCATENATE(J25,G6)","v":"50 Ω"},null,"+\nVolt",null,"Vt2"]
["Volt",null,null,null,null,{"$f":"IF($J$22=$J$24,\"Ens spænding\",IF($J$22>$J$24,\"Positiv\",IF($J$22<$J$24,\"Negativ\",\"ERR\")))","v":"Ens spænding"},null,{"$f":"IF($J$22=$J$24,\"Ens spænding\",IF($J$22<$J$24,\"Positiv\",IF($J$22>$J$24,\"Negativ\",\"ERR\")))","v":"Ens spænding"},null,null,null,null,"Volt"]
[{"$f":"+H22","v":4.9999999999999991},null,null,null,null,null,null,null,null,null,null,null,5]
[]
[null,null,null,null,null,null,"GND"]
[]
[]
[]
[]
[]
["walter",null,null,null,null,null,null,null,null,null,null,null,null,null,null,null,null,null,"Reg.No.1264"]

{"sheet":"Manual","index":1,"n_rows":35,"n_cols":19,"rows_kept":35,"cut":false,"hidden":false,"merged":[[2,0,2,17],[0,0,0,19],[34,18,34,19]]}
["Carey Foster Bridge"]
["Carey Foster Bridge er en målebro til at bestemme værdien af en ubekendt modstand Rx. På denne hjemmeside kan du se, hvordan målebroen er opbygget:"]
["http://en.wikipedia.org/wiki/Carey_Foster_bridge "]
["I mit Excel regneark kan den ubekendte modstand Rx beregnes, men naturligvis er det umuligt at foretage en beregning i Excel,"]
["hvis ikke der indsættes en værdi for Rx i regnearket. Men i praksis indsætter man jo også en modstand, så det gør vi også i regnearket."]
[]
["Et måleinstrument kan ikke måle fra 0 til uendeligt, men har flere måleområder. Den viste målebro kan bestemme værdier fra 0 Ohm til 200 Ohm."]
["Hvis man ønsker et højere måleområde f.eks. fra 0 Ohm til 2K Ohm udskiftes alle modstande til 1K Ohm."]
["Hvis man ønsker et lavere måleområde f.eks. fra 0 Ohm til 20 Ohm udskiftes alle modstande til 10 Ohm."]
[]
["Strømforsyningen Vcc har ingen indflydelse på resultatet, men spændingen må ikke være for stor, hvis man laver målebroen til det lave område."]
["Den viste målebro med 100 Ohm modstande, har en Vcc på 10 Volt, hvilket giver en strøm fra batteriet (Vcc) på 78,57mA, og modstandene er på 250mW."]
["Hvis den samme spænding tilføres det lave måleområde, vil strømmen stige til 785,7mA, og modstandene er på 2,5W."]
["Derfor skal Vcc nedsættes til 1 volt og strømmen fra batteriet (Vcc) er igen på 78,57mA, men modstandene er nu kun på 25mW."]
[]
["For det høje område er der ingen grund til at forøge spændingen til 100 Volt. Strømmen trukket fra batteriet er nu kun på 7,857mA og modstandene er på 25mW."]
[]
["Nu til det sjove. Regnearket skal afprøves med en ubekendt modstand Rx. Jeg har gemt en modstand et sted på arket med en værdi x Ohm."]
["Kan du finde værdien? Gør således: Tast Makro knappen ”Indsæt Rx”, værdien indsættes i den gule celle D4, men du kan ikke se værdien."]
["Tast nu Makro knappen ”Hvad hvis-analyse”, og værdien kommer frem i den grønne celle F6."]
[]
["Du kan selv afprøve regnearket ved at indtaste en værdi mellem 0 og 200 i den gule celle D4, for derefter at udføre en ”Hvad hvis-analyse” ved at taste Makro knappen."]
["Værdien, du har indsat, aflæses i den grønne celle F6. Det kan også bruges som en ”Gætte leg”, få en ven til at indtaste en værdi mellem 0 og 200, og fortæl ham,"]
["at du kan gætte tallet."]
[]
["Det er det, som jeg mener med at finde værdien af en ubekendt modstand. Værdien er indsat i den gule celle, men kan først aflæses i den grønne celle"]
["efter en måling = ”Hvad hvis-analyse”."]
[]
["De to diagrammer på siden er nøjagtig ens, men blot tegnet forskelligt. Det til venstre ligner en Wheatstone bro – og det er det også - det til højre er en Foster bro,"]
["hvor jeg har erstattet glidetråden med et multi turn potentiometer R3A-R3B. I princippet er forskellen ens."]
[]
["Nedenfor ses først en modificeret Wheastone bro, hvor i potentiometeret indgår som to modstande R3A og R3B. Dernæst ses et ækvivalent diagram for ovenstående."]
[]
["Læs på hjemmesiden, hvordan Carey Foster bridge anvendes:"]
["walter",null,null,null,null,null,null,null,null,null,null,null,null,null,null,null,null,null,"Reg.No.1254"]